[Event "Live Chess"]
[Site "Chess.com"]
[Date "2023.05.20"]
[Round "-"]
[White "Richardallis"]
[Black "viktorskliarov"]
[Result "0-1"]
[WhiteElo "1780"]
[BlackElo "2653"]
[TimeControl "300"]
[EndTime "13:02:41 PDT"]
[Termination "viktorskliarov won by resignation"]

1. d4 {[%clk 0:04:56.8]} 1... Nf6 {[%clk 0:04:57.3]} 2. Nf3 {[%clk 0:04:55.3]}
2... g6 {[%clk 0:04:56.5]} 3. Bf4 {[%clk 0:04:54.3]} 3... Bg7 {[%clk 0:04:55.8]}
4. c3 {[%clk 0:04:53.5]} 4... O-O {[%clk 0:04:54.9]} 5. Nbd2 {[%clk 0:04:52.3]}
5... d5 {[%clk 0:04:52]} 6. e3 {[%clk 0:04:51.2]} 6... b6 {[%clk 0:04:49.9]} 7.
Be2 {[%clk 0:04:49.9]} 7... c5 {[%clk 0:04:48.3]} 8. O-O {[%clk 0:04:49]} 8...
Nc6 {[%clk 0:04:45.1]} 9. Re1 {[%clk 0:04:47.4]} 9... Bf5 {[%clk 0:04:39.8]} 10.
Rc1 {[%clk 0:04:45.7]} 10... Nh5 {[%clk 0:04:35.8]} 11. Nf1 {[%clk 0:04:40.5]}
11... Nxf4 {[%clk 0:04:30]} 12. exf4 {[%clk 0:04:39.4]} 12... cxd4 {[%clk
0:04:29.3]} 13. Nxd4 {[%clk 0:04:35.4]} 13... Nxd4 {[%clk 0:04:26.5]} 14. cxd4
{[%clk 0:04:34.5]} 14... Qd6 {[%clk 0:04:25.7]} 15. Qd2 {[%clk 0:04:29.7]} 15...
Rac8 {[%clk 0:04:12.8]} 16. g3 {[%clk 0:04:26.8]} 16... Rxc1 {[%clk 0:04:01.3]}
17. Rxc1 {[%clk 0:04:25.3]} 17... Rc8 {[%clk 0:04:00.8]} 18. Rxc8+ {[%clk
0:04:20.2]} 18... Bxc8 {[%clk 0:04:00.7]} 19. Ne3 {[%clk 0:04:18.5]} 19... h5
{[%clk 0:03:51.3]} 20. a3 {[%clk 0:04:16.9]} 20... Qc6 {[%clk 0:02:43.5]} 21.
Qc3 {[%clk 0:04:13.1]} 21... Qxc3 {[%clk 0:02:32.8]} 22. bxc3 {[%clk 0:04:11.7]}
22... e6 {[%clk 0:02:31.9]} 23. Bb5 {[%clk 0:04:04.3]} 23... a6 {[%clk
0:02:26.8]} 24. Bc6 {[%clk 0:04:02.9]} 24... Kf8 {[%clk 0:02:19.8]} 25. Kf1
{[%clk 0:04:00.5]} 25... Ke7 {[%clk 0:02:14]} 26. Ke2 {[%clk 0:03:59]} 26... Bd7
{[%clk 0:01:56.8]} 27. Bxd7 {[%clk 0:03:55.4]} 27... Kxd7 {[%clk 0:01:56.7]} 28.
Kd3 {[%clk 0:03:54.1]} 28... Kc6 {[%clk 0:01:53.4]} 29. Kc2 {[%clk 0:03:52.4]}
29... Bf8 {[%clk 0:01:49.7]} 30. Kb3 {[%clk 0:03:51.4]} 30... Kb5 {[%clk
0:01:43.4]} 31. a4+ {[%clk 0:03:50]} 31... Kc6 {[%clk 0:01:42]} 32. Nc2 {[%clk
0:03:48.7]} 32... a5 {[%clk 0:01:35.4]} 33. Ne1 {[%clk 0:03:46.9]} 33... b5
{[%clk 0:01:31.3]} 34. Nd3 {[%clk 0:03:45.8]} 34... f6 {[%clk 0:01:31]} 35. f3
{[%clk 0:03:42.3]} 35... Bd6 {[%clk 0:01:29.3]} 36. g4 {[%clk 0:03:39.3]} 36...
h4 {[%clk 0:01:25]} 37. h3 {[%clk 0:03:36.9]} 37... f5 {[%clk 0:01:20.2]} 38. g5
{[%clk 0:03:35.5]} 38... Kb6 {[%clk 0:01:18.6]} 39. Ne5 {[%clk 0:03:31.6]} 39...
Bxe5 {[%clk 0:01:17.1]} 40. fxe5 {[%clk 0:03:30.6]} 40... Ka6 {[%clk 0:00:57]}
41. f4 {[%clk 0:03:22.8]} 41... Kb6 {[%clk 0:00:53.8]} 42. Ka3 {[%clk
0:03:21.7]} 42... Kc6 {[%clk 0:00:46.6]} 43. Kb3 {[%clk 0:03:20.2]} 43... bxa4+
{[%clk 0:00:45.9]} 44. Kxa4 {[%clk 0:03:19]} 44... Kb6 {[%clk 0:00:45.4]} 45.
Ka3 {[%clk 0:03:15.4]} 45... Kb5 {[%clk 0:00:44.5]} 46. Kb3 {[%clk 0:03:15]}
46... a4+ {[%clk 0:00:43.5]} 47. Ka3 {[%clk 0:03:14.6]} 47... Kc4 {[%clk
0:00:42.9]} 48. Kxa4 {[%clk 0:03:14.2]} 48... Kxc3 {[%clk 0:00:42.4]} 49. Kb5
{[%clk 0:03:14.1]} 49... Kxd4 {[%clk 0:00:41.3]} 50. Kc6 {[%clk 0:03:14]} 50...
Ke4 {[%clk 0:00:37.6]} 51. Kd6 {[%clk 0:03:12.9]} 51... d4 {[%clk 0:00:37.1]}
52. Kxe6 {[%clk 0:03:12.5]} 52... d3 {[%clk 0:00:36.6]} 53. Kf7 {[%clk
0:03:11.4]} 53... d2 {[%clk 0:00:35.8]} 54. e6 {[%clk 0:03:11]} 54... d1=Q
{[%clk 0:00:35]} 55. e7 {[%clk 0:03:10.6]} 55... Qd7 {[%clk 0:00:33.6]} 56. Kf8
{[%clk 0:03:09.1]} 56... Kxf4 {[%clk 0:00:32.5]} 57. e8=Q {[%clk 0:03:07.6]}
57... Qxe8+ {[%clk 0:00:31.8]} 58. Kxe8 {[%clk 0:03:06.9]} 58... Kxg5 {[%clk
0:00:31.5]} 59. Kf7 {[%clk 0:03:06.2]} 59... f4 {[%clk 0:00:31.4]} 60. Kg7
{[%clk 0:03:05.2]} 60... f3 {[%clk 0:00:31.3]} 61. Kh7 {[%clk 0:03:04.5]} 61...
f2 {[%clk 0:00:31.2]} 62. Kh8 {[%clk 0:03:03.9]} 62... f1=Q {[%clk 0:00:31.1]}
63. Kh7 {[%clk 0:03:03.4]} 63... Qxh3 {[%clk 0:00:31]} 64. Kg7 {[%clk
0:03:02.1]} 64... Qd7+ {[%clk 0:00:29.3]} 0-1

[Event "Live Chess"]
[Site "Chess.com"]
[Date "2023.05.20"]
[Round "-"]
[White "PureMellowPlan"]
[Black "LaupMiths"]
[Result "0-1"]
[WhiteElo "615"]
[BlackElo "1804"]
[TimeControl "300"]
[EndTime "13:02:43 PDT"]
[Termination "LaupMiths won by checkmate"]

1. e4 {[%clk 0:04:55]} 1... c5 {[%clk 0:04:56.6]} 2. Bc4 {[%clk 0:04:52.7]} 2...
e6 {[%clk 0:04:55.1]} 3. Nf3 {[%clk 0:04:46.8]} 3... a6 {[%clk 0:04:54.2]} 4.
O-O {[%clk 0:04:42.8]} 4... b5 {[%clk 0:04:53.1]} 5. Bd3 {[%clk 0:04:40.7]} 5...
Bb7 {[%clk 0:04:52.4]} 6. Nc3 {[%clk 0:04:34.9]} 6... g6 {[%clk 0:04:50.9]} 7.
Be2 {[%clk 0:04:30.7]} 7... Bg7 {[%clk 0:04:50.1]} 8. b3 {[%clk 0:04:26]} 8...
Nc6 {[%clk 0:04:46.4]} 9. Bb2 {[%clk 0:04:23.9]} 9... Nge7 {[%clk 0:04:44.5]}
10. Bd3 {[%clk 0:03:56]} 10... O-O {[%clk 0:04:40.3]} 11. Rb1 {[%clk 0:03:47.8]}
11... d5 {[%clk 0:04:33.2]} 12. exd5 {[%clk 0:03:43.1]} 12... exd5 {[%clk
0:04:33.1]} 13. Ne2 {[%clk 0:03:39.2]} 13... d4 {[%clk 0:04:30.2]} 14. c3 {[%clk
0:03:36.4]} 14... Nf5 {[%clk 0:04:19.3]} 15. Bxf5 {[%clk 0:03:29]} 15... gxf5
{[%clk 0:04:19.2]} 16. cxd4 {[%clk 0:03:24.9]} 16... Nb4 {[%clk 0:04:06.3]} 17.
dxc5 {[%clk 0:03:15.8]} 17... Bxf3 {[%clk 0:03:57.1]} 18. Bxg7 {[%clk
0:03:04.2]} 18... Kxg7 {[%clk 0:03:55.6]} 19. gxf3 {[%clk 0:02:56.5]} 19... Rg8
{[%clk 0:03:40.3]} 20. Kh1 {[%clk 0:02:50.9]} 20... Nd3 {[%clk 0:03:38.7]} 21.
Rg1+ {[%clk 0:02:47.7]} 21... Kf8 {[%clk 0:03:37.5]} 22. Rxg8+ {[%clk
0:02:40.8]} 22... Kxg8 {[%clk 0:03:36.5]} 23. Qg1+ {[%clk 0:02:40]} 23... Kh8
{[%clk 0:03:35.3]} 24. a3 {[%clk 0:02:28.5]} 24... Qd5 {[%clk 0:03:31.5]} 25. a4
{[%clk 0:02:23.4]} 25... Rg8 {[%clk 0:03:29]} 26. Qf1 {[%clk 0:02:16.9]} 26...
Qxf3+ {[%clk 0:03:26]} 27. Qg2 {[%clk 0:01:48.2]} 27... Qxg2# {[%clk 0:03:16.7]}
0-1

[Event "Live Chess"]
[Site "Chess.com"]
[Date "2023.05.20"]
[Round "-"]
[White "KING_BOBBB"]
[Black "SirEntrails"]
[Result "1-0"]
[WhiteElo "554"]
[BlackElo "537"]
[TimeControl "300"]
[EndTime "13:02:48 PDT"]
[Termination "KING_BOBBB won by checkmate"]

1. e4 {[%clk 0:04:55.8]} 1... d5 {[%clk 0:04:57.8]} 2. e5 {[%clk 0:04:53.8]}
2... Nc6 {[%clk 0:04:56]} 3. d4 {[%clk 0:04:52.1]} 3... f6 {[%clk 0:04:51.9]} 4.
f4 {[%clk 0:04:49.3]} 4... fxe5 {[%clk 0:04:50.7]} 5. fxe5 {[%clk 0:04:47.8]}
5... e6 {[%clk 0:04:46.2]} 6. Nf3 {[%clk 0:04:45.8]} 6... Bb4+ {[%clk
0:04:39.5]} 7. c3 {[%clk 0:04:44.2]} 7... Be7 {[%clk 0:04:36.5]} 8. Bb5 {[%clk
0:04:35.9]} 8... Qd7 {[%clk 0:04:30.3]} 9. O-O {[%clk 0:04:16.7]} 9... Nh6
{[%clk 0:04:25.6]} 10. Bxh6 {[%clk 0:04:13.9]} 10... gxh6 {[%clk 0:04:23.2]} 11.
b3 {[%clk 0:04:05]} 11... a6 {[%clk 0:04:18.1]} 12. Bxc6 {[%clk 0:04:03.5]}
12... Qxc6 {[%clk 0:04:13.3]} 13. g3 {[%clk 0:03:41.1]} 13... Bg5 {[%clk
0:04:07.5]} 14. h4 {[%clk 0:03:33.7]} 14... Be3+ {[%clk 0:04:03.6]} 15. Kg2
{[%clk 0:03:30.5]} 15... Bd7 {[%clk 0:03:59.8]} 16. Re1 {[%clk 0:03:13.4]} 16...
Bxd4 {[%clk 0:03:48.2]} 17. Qxd4 {[%clk 0:03:11]} 17... O-O-O {[%clk 0:03:43.2]}
18. Qa7 {[%clk 0:03:07.8]} 18... Be8 {[%clk 0:03:31.8]} 19. Qa8+ {[%clk
0:03:06.3]} 19... Kd7 {[%clk 0:03:30.8]} 20. Qa7 {[%clk 0:03:01.9]} 20... Bh5
{[%clk 0:03:20.4]} 21. Nd4 {[%clk 0:02:59.3]} 21... Qxc3 {[%clk 0:03:13]} 22.
Nxc3 {[%clk 0:02:57.1]} 22... Rhf8 {[%clk 0:03:00]} 23. Qxb7 {[%clk 0:02:50.4]}
23... Rc8 {[%clk 0:02:45.2]} 24. Qc6+ {[%clk 0:02:44.6]} 24... Kd8 {[%clk
0:02:40]} 25. Nxe6+ {[%clk 0:02:40.4]} 25... Ke7 {[%clk 0:02:35.1]} 26. Nxd5+
{[%clk 0:02:39.2]} 26... Kf7 {[%clk 0:02:30.8]} 27. Qd7+ {[%clk 0:02:38.4]}
27... Kg6 {[%clk 0:02:27.9]} 28. Qg7+ {[%clk 0:02:29.8]} 28... Kf5 {[%clk
0:02:25.9]} 29. Nd4# {[%clk 0:02:20.6]} 1-0

[Event "Live Chess"]
[Site "Chess.com"]
[Date "2023.05.20"]
[Round "-"]
[White "flyingpuffins"]
[Black "LiamClery2020"]
[Result "0-1"]
[WhiteElo "1952"]
[BlackElo "2079"]
[TimeControl "300"]
[EndTime "13:02:57 PDT"]
[Termination "LiamClery2020 won on time"]

1. e4 {[%clk 0:04:57.6]} 1... Nf6 {[%clk 0:04:58.7]} 2. Nc3 {[%clk 0:04:56]}
2... e5 {[%clk 0:04:57.3]} 3. f4 {[%clk 0:04:53.6]} 3... d5 {[%clk 0:04:56.3]}
4. fxe5 {[%clk 0:04:52.7]} 4... Nxe4 {[%clk 0:04:54.9]} 5. Qf3 {[%clk
0:04:52.1]} 5... Nc6 {[%clk 0:04:53.6]} 6. Bb5 {[%clk 0:04:50.4]} 6... Nxc3
{[%clk 0:04:51.6]} 7. dxc3 {[%clk 0:04:48.9]} 7... Qh4+ {[%clk 0:04:50.6]} 8. g3
{[%clk 0:04:47]} 8... Qe4+ {[%clk 0:04:50.1]} 9. Qxe4 {[%clk 0:04:46.7]} 9...
dxe4 {[%clk 0:04:49.5]} 10. Ne2 {[%clk 0:04:45.4]} 10... Bd7 {[%clk 0:04:48.5]}
11. Bf4 {[%clk 0:04:43.5]} 11... Nxe5 {[%clk 0:04:46.7]} 12. Bxd7+ {[%clk
0:04:39.3]} 12... Nxd7 {[%clk 0:04:46.6]} 13. Bxc7 {[%clk 0:04:38.8]} 13... Bc5
{[%clk 0:04:45]} 14. O-O-O {[%clk 0:04:34.3]} 14... Rc8 {[%clk 0:04:44.1]} 15.
Bf4 {[%clk 0:04:32.3]} 15... Nf6 {[%clk 0:04:42.1]} 16. Nd4 {[%clk 0:04:28.5]}
16... O-O {[%clk 0:04:41.1]} 17. Rhe1 {[%clk 0:04:24.4]} 17... Rfe8 {[%clk
0:04:39.4]} 18. Bg5 {[%clk 0:04:23.2]} 18... Ng4 {[%clk 0:04:35.7]} 19. h3
{[%clk 0:04:16.9]} 19... Nf2 {[%clk 0:04:34.2]} 20. Rd2 {[%clk 0:04:08]} 20...
e3 {[%clk 0:04:33.1]} 21. Rxe3 {[%clk 0:03:59.6]} 21... Ne4 {[%clk 0:04:27.1]}
22. Rde2 {[%clk 0:03:53.8]} 22... f5 {[%clk 0:04:21.1]} 23. g4 {[%clk
0:03:30.1]} 23... g6 {[%clk 0:04:16.6]} 24. gxf5 {[%clk 0:03:22.7]} 24... gxf5
{[%clk 0:04:16.5]} 25. Bf4 {[%clk 0:03:11.8]} 25... Kf7 {[%clk 0:04:10.8]} 26.
Rf3 {[%clk 0:02:28.5]} 26... Nxc3 {[%clk 0:03:48.4]} 27. Rxe8 {[%clk 0:02:21.5]}
27... Nxa2+ {[%clk 0:03:46.7]} 28. Kb1 {[%clk 0:02:16.2]} 28... Rxe8 {[%clk
0:03:46]} 29. Nxf5 {[%clk 0:01:36]} 29... Kg6 {[%clk 0:03:17.3]} 30. Kxa2 {[%clk
0:00:59]} 30... Kxf5 {[%clk 0:03:14]} 31. Rf1 {[%clk 0:00:42.8]} 31... Kg6
{[%clk 0:03:05.9]} 32. Kb3 {[%clk 0:00:30.2]} 32... b5 {[%clk 0:03:01.7]} 33.
Bd2 {[%clk 0:00:27.6]} 33... Re4 {[%clk 0:02:58.5]} 34. Bc3 {[%clk 0:00:26]}
34... Bd4 {[%clk 0:02:49.6]} 35. Bxd4 {[%clk 0:00:25.1]} 35... Rxd4 {[%clk
0:02:49.3]} 36. Rf3 {[%clk 0:00:24.4]} 36... a5 {[%clk 0:02:46.4]} 37. c3 {[%clk
0:00:23.5]} 37... a4+ {[%clk 0:02:44.1]} 38. Kc2 {[%clk 0:00:22.6]} 38... Rh4
{[%clk 0:02:41.6]} 39. Rg3+ {[%clk 0:00:21.8]} 39... Kf7 {[%clk 0:02:40.5]} 40.
b3 {[%clk 0:00:21.4]} 40... a3 {[%clk 0:02:39.5]} 41. Kb1 {[%clk 0:00:19.4]}
41... Rf4 {[%clk 0:02:35.7]} 42. Ka2 {[%clk 0:00:18.5]} 42... Rf2+ {[%clk
0:02:35.2]} 43. Kxa3 {[%clk 0:00:17.9]} 43... Rf1 {[%clk 0:02:35.1]} 44. Kb4
{[%clk 0:00:17.1]} 44... Rf5 {[%clk 0:02:33.9]} 45. c4 {[%clk 0:00:16.2]} 45...
bxc4 {[%clk 0:02:33.4]} 46. bxc4 {[%clk 0:00:16.1]} 46... Rf1 {[%clk 0:02:33]}
47. Kc3 {[%clk 0:00:15.2]} 47... Rc1+ {[%clk 0:02:32.4]} 48. Kd4 {[%clk
0:00:15.1]} 48... Rd1+ {[%clk 0:02:31.7]} 49. Kc5 {[%clk 0:00:15]} 49... Ke6
{[%clk 0:02:31.3]} 50. Rf3 {[%clk 0:00:14.6]} 50... Ra1 {[%clk 0:02:30.2]} 51.
Rg3 {[%clk 0:00:14.5]} 51... Ra5+ {[%clk 0:02:29.4]} 52. Kd4 {[%clk 0:00:13.6]}
52... Ra1 {[%clk 0:02:27.6]} 53. Kc3 {[%clk 0:00:13.5]} 53... Ra3+ {[%clk
0:02:26.7]} 54. Kb4 {[%clk 0:00:13.4]} 54... Rxg3 {[%clk 0:02:26.6]} 0-1

[Event "Live Chess"]
[Site "Chess.com"]
[Date "2023.05.20"]
[Round "-"]
[White "Bob2pen"]
[Black "Jo1ts"]
[Result "1-0"]
[WhiteElo "1824"]
[BlackElo "730"]
[TimeControl "300"]
[EndTime "13:03:06 PDT"]
[Termination "Bob2pen won by resignation"]

1. c4 {[%clk 0:04:57.1]} 1... d5 {[%clk 0:04:58.7]} 2. g3 {[%clk 0:04:56]} 2...
dxc4 {[%clk 0:04:57]} 3. Bg2 {[%clk 0:04:54.9]} 3... e5 {[%clk 0:04:49.5]} 4. a4
{[%clk 0:04:53]} 4... Nf6 {[%clk 0:04:47.8]} 5. Nf3 {[%clk 0:04:49.5]} 5... Nc6
{[%clk 0:04:44.8]} 6. O-O {[%clk 0:04:47.5]} 6... Bc5 {[%clk 0:04:38.4]} 7. Na3
{[%clk 0:04:45.5]} 7... Be6 {[%clk 0:04:36.1]} 8. Ng5 {[%clk 0:04:42.5]} 8...
Qd6 {[%clk 0:04:19.5]} 9. Nb5 {[%clk 0:04:35.2]} 9... Qd7 {[%clk 0:04:12.6]} 10.
Nxe6 {[%clk 0:04:22.7]} 10... fxe6 {[%clk 0:04:04.6]} 11. Qc2 {[%clk 0:04:15.7]}
11... a6 {[%clk 0:04:00.5]} 12. Qxc4 {[%clk 0:04:10]} 12... axb5 {[%clk
0:03:47.2]} 13. Qxc5 {[%clk 0:04:06.9]} 13... bxa4 {[%clk 0:03:45.7]} 14. b3
{[%clk 0:04:01.9]} 14... b6 {[%clk 0:03:35.2]} 15. Qxc6 {[%clk 0:03:58.8]} 15...
Qxc6 {[%clk 0:03:32.9]} 16. Bxc6+ {[%clk 0:03:57.3]} 1-0

[Event "Live Chess"]
[Site "Chess.com"]
[Date "2023.05.20"]
[Round "-"]
[White "FunSingingHawk"]
[Black "Tushinskiy"]
[Result "0-1"]
[WhiteElo "1196"]
[BlackElo "2107"]
[TimeControl "300"]
[EndTime "13:03:07 PDT"]
[Termination "Tushinskiy won on time"]

1. e4 {[%clk 0:04:55.2]} 1... e5 {[%clk 0:04:59.1]} 2. Nf3 {[%clk 0:04:53]} 2...
d6 {[%clk 0:04:59]} 3. Nc3 {[%clk 0:04:51.3]} 3... Bg4 {[%clk 0:04:58.4]} 4. h3
{[%clk 0:04:42.8]} 4... Bh5 {[%clk 0:04:55.5]} 5. Bb5+ {[%clk 0:04:35.4]} 5...
c6 {[%clk 0:04:53.9]} 6. Ba4 {[%clk 0:04:29.7]} 6... Nd7 {[%clk 0:04:51.5]} 7.
d3 {[%clk 0:04:07.4]} 7... Ngf6 {[%clk 0:04:49.2]} 8. Be3 {[%clk 0:04:02.2]}
8... Be7 {[%clk 0:04:48.1]} 9. O-O {[%clk 0:03:49]} 9... O-O {[%clk 0:04:45.8]}
10. b3 {[%clk 0:03:00.4]} 10... b5 {[%clk 0:04:42.7]} 11. Nxb5 {[%clk
0:02:45.1]} 11... cxb5 {[%clk 0:04:42.6]} 12. Bxb5 {[%clk 0:02:42.5]} 12... Nc5
{[%clk 0:04:40.6]} 13. d4 {[%clk 0:02:14.7]} 13... exd4 {[%clk 0:04:17.8]} 14.
Bxd4 {[%clk 0:02:09.1]} 14... Ncxe4 {[%clk 0:04:16.8]} 15. Bc4 {[%clk
0:01:35.6]} 15... d5 {[%clk 0:04:11.7]} 16. Nd2 {[%clk 0:01:07.6]} 16... Bxd1
{[%clk 0:04:08.8]} 17. Rfxd1 {[%clk 0:00:59.6]} 17... Nxd2 {[%clk 0:04:05.8]}
18. Rxd2 {[%clk 0:00:56.7]} 18... dxc4 {[%clk 0:04:03.1]} 19. bxc4 {[%clk
0:00:54.1]} 19... Qc7 {[%clk 0:03:58.1]} 20. Rc1 {[%clk 0:00:49.1]} 20... Qxc4
{[%clk 0:03:54.7]} 21. Rdd1 {[%clk 0:00:42.4]} 21... Rad8 {[%clk 0:03:49.7]} 22.
Rd2 {[%clk 0:00:26]} 22... Rxd4 {[%clk 0:03:48.1]} 23. Rxd4 {[%clk 0:00:24.2]}
23... Qxd4 {[%clk 0:03:48]} 24. Rd1 {[%clk 0:00:18]} 24... Qxd1+ {[%clk
0:03:43.1]} 25. Kh2 {[%clk 0:00:16.1]} 25... Bd6+ {[%clk 0:03:43]} 0-1

[Event "Live Chess"]
[Site "Chess.com"]
[Date "2023.05.20"]
[Round "-"]
[White "KuriyamaMiraiUA"]
[Black "reshmiramachandran"]
[Result "1-0"]
[WhiteElo "687"]
[BlackElo "510"]
[TimeControl "300"]
[EndTime "13:03:15 PDT"]
[Termination "KuriyamaMiraiUA won by checkmate"]

1. d4 {[%clk 0:04:56.6]} 1... d5 {[%clk 0:04:54.8]} 2. c4 {[%clk 0:04:55.7]}
2... e6 {[%clk 0:04:51.7]} 3. Nc3 {[%clk 0:04:54.5]} 3... dxc4 {[%clk 0:04:50]}
4. e4 {[%clk 0:04:52.7]} 4... Nc6 {[%clk 0:04:48]} 5. Nf3 {[%clk 0:04:49.2]}
5... Nf6 {[%clk 0:04:44]} 6. Bxc4 {[%clk 0:04:47]} 6... Bb4 {[%clk 0:04:40.3]}
7. Bd3 {[%clk 0:04:16.4]} 7... Nxd4 {[%clk 0:04:32.7]} 8. Nxd4 {[%clk
0:04:12.3]} 8... Qxd4 {[%clk 0:04:30.9]} 9. Bb5+ {[%clk 0:04:07.5]} 9... c6
{[%clk 0:04:25.1]} 10. Qxd4 {[%clk 0:04:03.4]} 10... Bxc3+ {[%clk 0:04:23.3]}
11. Qxc3 {[%clk 0:03:59.7]} 11... cxb5 {[%clk 0:04:20.2]} 12. Qb4 {[%clk
0:03:46]} 12... a5 {[%clk 0:04:14.4]} 13. Qxb5+ {[%clk 0:03:41]} 13... Bd7
{[%clk 0:04:11.5]} 14. Qxb7 {[%clk 0:03:36.7]} 14... O-O {[%clk 0:04:05]} 15. e5
{[%clk 0:03:21]} 15... Rab8 {[%clk 0:04:01.1]} 16. Qa6 {[%clk 0:02:51.4]} 16...
Nd5 {[%clk 0:03:36.6]} 17. Qxa5 {[%clk 0:02:31.8]} 17... Nb4 {[%clk 0:03:33]}
18. O-O {[%clk 0:02:26.1]} 18... Nc2 {[%clk 0:03:25.7]} 19. Rb1 {[%clk
0:02:21.2]} 19... Bb5 {[%clk 0:03:20]} 20. Rd1 {[%clk 0:02:13.8]} 20... Rfc8
{[%clk 0:03:11.7]} 21. a4 {[%clk 0:02:02.3]} 21... Be2 {[%clk 0:03:09.2]} 22.
Rd2 {[%clk 0:01:46]} 22... Bh5 {[%clk 0:03:01.2]} 23. b3 {[%clk 0:01:32.3]}
23... Bg6 {[%clk 0:02:57.7]} 24. Ba3 {[%clk 0:01:22.3]} 24... Nxa3 {[%clk
0:02:53]} 25. Rbd1 {[%clk 0:01:17.3]} 25... h6 {[%clk 0:02:43.5]} 26. Rd8+
{[%clk 0:01:11.7]} 26... Rxd8 {[%clk 0:02:41.9]} 27. Rxd8+ {[%clk 0:01:10]}
27... Rxd8 {[%clk 0:02:40.9]} 28. Qxd8+ {[%clk 0:01:08.9]} 28... Kh7 {[%clk
0:02:39.9]} 29. a5 {[%clk 0:01:03.7]} 29... Nb5 {[%clk 0:02:36.7]} 30. Qb6
{[%clk 0:01:00.9]} 30... Nc3 {[%clk 0:02:32.3]} 31. a6 {[%clk 0:00:58.8]} 31...
Nd5 {[%clk 0:02:31.2]} 32. Qb7 {[%clk 0:00:54.2]} 32... Be4 {[%clk 0:02:23]} 33.
a7 {[%clk 0:00:49.8]} 33... Nc3 {[%clk 0:02:21.7]} 34. Qxe4+ {[%clk 0:00:46.1]}
34... Nxe4 {[%clk 0:02:20.1]} 35. a8=Q {[%clk 0:00:45.1]} 35... Nc5 {[%clk
0:02:16]} 36. b4 {[%clk 0:00:44]} 36... Ne4 {[%clk 0:02:13.1]} 37. Qxe4+ {[%clk
0:00:42.2]} 37... Kg8 {[%clk 0:02:08.6]} 38. b5 {[%clk 0:00:40.2]} 38... Kf8
{[%clk 0:02:07.3]} 39. b6 {[%clk 0:00:39.5]} 39... Ke8 {[%clk 0:02:06.2]} 40.
Qc6+ {[%clk 0:00:34.1]} 40... Ke7 {[%clk 0:02:03.2]} 41. b7 {[%clk 0:00:32.4]}
41... f5 {[%clk 0:01:56.8]} 42. b8=Q {[%clk 0:00:26.9]} 42... Kf7 {[%clk
0:01:48.9]} 43. Qce8# {[%clk 0:00:22.5]} 1-0

[Event "Live Chess"]
[Site "Chess.com"]
[Date "2023.05.20"]
[Round "-"]
[White "Lewstar1"]
[Black "therealab0ne"]
[Result "0-1"]
[WhiteElo "453"]
[BlackElo "704"]
[TimeControl "300"]
[EndTime "13:03:18 PDT"]
[Termination "therealab0ne won by checkmate"]

1. e4 {[%clk 0:04:58.2]} 1... c5 {[%clk 0:04:58.9]} 2. Nf3 {[%clk 0:04:57.3]}
2... Nc6 {[%clk 0:04:58.3]} 3. Nc3 {[%clk 0:04:53.2]} 3... Nf6 {[%clk
0:04:56.7]} 4. Bc4 {[%clk 0:04:52.2]} 4... e6 {[%clk 0:04:54.7]} 5. b3 {[%clk
0:04:49.7]} 5... d5 {[%clk 0:04:53.9]} 6. exd5 {[%clk 0:04:45.8]} 6... exd5
{[%clk 0:04:53.2]} 7. Be2 {[%clk 0:04:44.5]} 7... d4 {[%clk 0:04:45.9]} 8. Na4
{[%clk 0:04:41]} 8... Bd6 {[%clk 0:04:26.3]} 9. Bc4 {[%clk 0:04:35.9]} 9... O-O
{[%clk 0:04:22.2]} 10. O-O {[%clk 0:04:23.7]} 10... Rb8 {[%clk 0:04:08.9]} 11.
Re1 {[%clk 0:04:22]} 11... b5 {[%clk 0:04:07.6]} 12. Bxb5 {[%clk 0:04:17.5]}
12... Rxb5 {[%clk 0:04:06.2]} 13. Nb2 {[%clk 0:04:01.9]} 13... Bf5 {[%clk
0:03:29.3]} 14. Nh4 {[%clk 0:03:43.3]} 14... Ne7 {[%clk 0:02:58.1]} 15. Nxf5
{[%clk 0:03:38.3]} 15... Nxf5 {[%clk 0:02:57]} 16. Qf3 {[%clk 0:03:31.3]} 16...
Re8 {[%clk 0:02:39.2]} 17. Rxe8+ {[%clk 0:03:23]} 17... Qxe8 {[%clk 0:02:37.8]}
18. h3 {[%clk 0:03:06.3]} 18... Qe1# {[%clk 0:02:34.5]} 0-1